Workbook

Sheet Main Sheet (hidden)
H1: ID: FREE
E2: www.HVACnotebook.com | H2: v.7.11
E3: QuickCalcs-HVAC (FREE Sample Version)
E4: User Guide & Disclaimer
C6: Calculation Spreadsheets | J6: Simple User Interface
C7: Feet & Inches (Math) | E7: Mixed Air Temperature | G7: GPM Calculations | K7: 34 | L7: Click On Any Yellow Cells And Enter (Replace With) Your Value
C9: Dates | E9: Mixed Water Temperature | G9: Water Volume Inside Pipe | K9: =K7/12 -> 2.833333333 | L9: Cell With Auto-Calculated Value.
C11: Percentage (Common) | E11: Ductwork Calculations | G11: Airflow Calculations | K11: 1234 | L11: Cell With Auto-Calculated Final Answer.
C13: Percentage (Individual) | E13: Louver Sizing | G13: Fan Motor HP | K13: DEMO | L13: Calculation Only Available in Full Version.
C15: Percentage (Engr./Arch.) | E15: Fan Laws | G15: Electrical: Ohm's Law
C17: Interpolation | E17: Pump Laws | G17: Piping Cost Estimate
C19: Unit Conversions | E19: 100% Outside Air Unit | G19: Chiller (Electric)
C21: Cooling & Heating Loads
B23: This is a FREE Sample Version where some calculations have been disabled and sheets can not be printed.
B24: Get the Full Version of "M1-QuickCalcs-HVAC.xlsm"
B25: We can create custom calculation spreadsheets for you.
B26: Visit www.HVACnotebook.com for more free products and information.

Sheet Mixed Air Temp (hidden)
B1: Please read the User Guide and Disclaimer prior to use.
G2: Return To Main Sheet
C4: Mixed Air Temperature
C7: A | D7: TA | E7: 72 | F7: F | G7: Temperature of "A" | I7: `
D8: CFMA | E8: 10000 | F8: CFM | G8: Airflow of "A"
C9: B | D9: TB | E9: 50 | F9: F | G9: Temperature of "B"
D10: CFMB | E10: 3000 | F10: CFM | G10: Airflow of "B"
C11: MixedA+B | D11: TA+B = | E11: =E7+(E10/(E8+E10))*(E9-E7) -> 66.92307692 | F11: F | G11: Mixed Air Temperature
D12: CFMA+B = | E12: =E8+E10 -> 13000 | F12: CFM | G12: Mixed Airflow

Sheet Mixed Water Temp (hidden)
B1: Please read the User Guide and Disclaimer prior to use.
G2: Return To Main Sheet
C4: Mixed Water Temperature
C7: A | D7: TA | E7: 45 | F7: F | G7: Temperature of "A" | I7: `
D8: GPMA | E8: 500 | F8: GPM | G8: Water Flow of "A"
C9: B | D9: TB | E9: 55 | F9: F | G9: Temperature of "B"
D10: GPMB | E10: 200 | F10: GPM | G10: Water Flow of "B"
C11: MixedA+B | D11: TA+B = | E11: =E7+(E10/(E8+E10))*(E9-E7) -> 47.85714286 | F11: F | G11: Mixed Water Temperature
D12: GPMA+B = | E12: =E8+E10 -> 700 | F12: GPM | G12: Mixed Water Flow

Sheet Dates (hidden)
B2: Please read the User Guide and Disclaimer prior to use. | I2: Return To Main Sheet
B4: TIME ELAPSED (Years, Months and Days) | G4: # OF WEEKS AFTER
C5: Start Date | D5: End Date | E5: Time Elapsed | G5: Date | H5: # Weeks After | I5: New Date
B6: My Age | C6: 1978-05-21 | D6: 2013-11-28 | E6: =IF(D6,IF(AND(DATEDIF(C6,D6,"y") <=0, DATEDIF(C6,D6,"ym") <=0), DATEDIF(C6,D6,"md") & " day(s)", IF(DATEDIF(C6,D6,"y")<=0, DATEDIF(C6,D6,"ym") & " month(s) and "& DATEDIF(C6,D6,"md") & " day(s)", DATEDIF(C6,D6,"y") & " year(s), " & DATEDIF(C6,D6,"ym") & " month(s) and "& DATEDIF(C6,D6,"md") & " day(s)")),"") -> 35 year(s), 6 month(s) and 7 day(s) | G6: 2013-11-28 | H6: 3 | I6: =IF(H6,DATE(YEAR(G6),MONTH(G6),DAY(G6)+H6*7),"") -> 2013-12-19
B7: Career with Company | C7: 2013-01-05 | D7: 2013-11-28 | E7: =IF(D7,IF(AND(DATEDIF(C7,D7,"y") <=0, DATEDIF(C7,D7,"ym") <=0), DATEDIF(C7,D7,"md") & " day(s)", IF(DATEDIF(C7,D7,"y")<=0, DATEDIF(C7,D7,"ym") & " month(s) and "& DATEDIF(C7,D7,"md") & " day(s)", DATEDIF(C7,D7,"y") & " year(s), " & DATEDIF(C7,D7,"ym") & " month(s) and "& DATEDIF(C7,D7,"md") & " day(s)")),"") -> 10 month(s) and 23 day(s) | G7: 2013-11-29 | H7: 4 | I7: 2013-12-27
B8: Trip | C8: 2009-05-22 | D8: 2015-09-25 | E8: 6 year(s), 4 month(s) and 3 day(s) | G8: 2013-11-30 | H8: 5 | I8: 2014-01-04
G9: 2013-12-01 | H9: 11 | I9: =IF(H9,DATE(YEAR(G9),MONTH(G9),DAY(G9)+H9*7),"") -> 2014-02-16
G10: 2013-12-02 | I10: =IF(H10,DATE(YEAR(G10),MONTH(G10),DAY(G10)+H10*7),"") -> 
B12: TIME ELAPSED (Days) | H12: DATE OF THE WEEK
C13: Start Date | D13: End Date | E13: Time Elapsed | H13: Date | I13: Date of the Week
B14: Last Trip | C14: 2013-05-01 | D14: 2013-11-28 | E14: =IF(D14,DATEDIF(C14,D14,"d") & " Days", "") -> 211 Days | H14: 1975-10-11 | I14: =IF(H14,TEXT(H14,"dddd"), "") -> Saturday
C15: 2013-01-05 | D15: 2013-11-28 | E15: 327 Days | H15: 2013-11-28 | I15: Thursday
E16: =IF(D16,DATEDIF(C16,D16,"d") & " Days", "") ->  | I16: =IF(H16,TEXT(H16,"dddd"), "") -> 
E17: =IF(D17,DATEDIF(C17,D17,"d") & " Days", "") ->  | I17: =IF(H17,TEXT(H17,"dddd"), "") -> 

Sheet Ductwork (hidden)
F1: Please read the User Guide and Disclaimer prior to use.
F2: DUCTWORK CALCULATIONS | J2: Return To Main Sheet
B4: Duct Airflow Calculation | F4: Circular Duct Air Velocity Calculation | J4: Equivalent Round Duct Size from Rect. Duct
B7: Duct Cross Section: Width (W) | C7: 34 | D7: Inches
B8: Duct Cross Section: Height (H) | C8: 24 | D8: Inches
B9: Area = | C9: =C7*C8/144 -> 5.666666667 | D9: Sq. Ft | F9: Duct Diameter (Dia.) = | G9: 26 | H9: Inches | J9: Duct Cross Section: Width (W) | K9: 30 | L9: Inches
B10: Air Velocity | C10: 1500 | D10: FPM | F10: Airflow (CFM) | G10: 10000 | H10: CFM | J10: Duct Cross Section: Height (H) | K10: 24 | L10: Inches
B11: Airflow = | C11: =C9*C10 -> 8500 | D11: CFM | F11: Air Velocity = | G11: =G10/((3.14*(G9/2)*(G9/2))/144) -> 2713.60193 | H11: FPM | J11: Equilvalent Diameter (Dia.) = | K11: =1.3*(((K9*K10)^0.625)/(((K9+K10)^0.25))) -> 29.28719121 | L11: Inches
B13: Duct Velocity Pressure | F13: Rectangular Duct Air Velocity Calculation | J13: Duct Surface Area
F16: Duct Cross Section: Width (W) | G16: DEMO | H16: Inches | K16: Inches | M16: Feet
B17: Air Velocity | C17: 1500 | D17: FPM | F17: Duct Cross Section: Height (H) | G17: DEMO | H17: Inches | J17: Duct Cross Section: Width (W) | K17: 20 | L17: = | M17: =K17/12 -> 1.666666667
B18: Velocity Pressure = | C18: =(G11/4005)^2 -> 0.4590788002 | D18: psi | F18: Area = | G18: DEMO | H18: Sq. Ft | J18: Duct Cross Section: Height (H) | K18: 24 | L18: = | M18: =K18/12 -> 2
F19: Airflow | G19: DEMO | H19: CFM | J19: Duct Length | K19: 96 | L19: = | M19: =K19/12 -> 8
F20: Air Velocity = | G20: DEMO | H20: FPM | J20: Total Surface Area = | K20: =M17*M19*2+M18*M19*2 -> 58.66666667 | L20: Sq. Ft
A21: Get the Full Version of "QuickCalcs-HVAC.xlsm" to use all features.
A22: The above calculations are also available in CalcSheet format: "D2 - Ductwork Surface Area, Weight and Cost Estimates.xlsx"
A23: Contact us for more information. Email: hvacnotebook@yahoo.com

Sheet Interpolation (hidden)
B1: Please read the User Guide and Disclaimer prior to use.
F2: Return To Main Sheet
C5: INTERPOLATION
C9: (1) | F9: (100th)
C10: 1 | D10: 10 | F10: 12 | G10: 10.7
C11: =C12-(((D12-D11)/(D12-D10))*(C12-C10)) -> 2 | D11: 20 | F11: =F12-(((G12-G11)/(G12-G10))*(F12-F10)) -> 19.96 | G11: 20.65
C12: 3 | D12: 30 | F12: 28 | G12: 30.7
C14: (10th) | F14: (1,000th)
C15: 10 | D15: 10.5 | F15: 0.001 | G15: 0.06
C16: =C17-(((D17-D16)/(D17-D15))*(C17-C15)) -> 19.40594059 | D16: 20 | F16: =F17-(((G17-G16)/(G17-G15))*(F17-F15)) -> 0.002 | G16: 0.07
C17: 30 | D17: 30.7 | F17: 0.003 | G17: 0.08

Sheet Feet & Inches (hidden)
P1: Please read the User Guide and Disclaimer prior to use.
P2: FEET & INCHES (MATH) | Z2: Return To Main Sheet
B4: Addition | I4: Addition | R4: Subtraction | Z4: Multiplication | AA4: Mulitplication
B5: (By Entering Inches Only) | I5: (By Entering Feet & Inches) | R5: (By Entering Feet & Inches) | Z5: (Area)
S7: Feet | T7: Inches | AA7: Feet | AB7: Inches
S8: 3 | T8: 6 | U8: =IF(T8="", "",S8*12+T8) -> 42 | V8: = | W8: =IF(U8="", "", IF(U8<12,U8&"""", INT(U8/12) &"' - "&MOD(U8,12)&"""")) -> 3' - 6" | AA8: 6 | AB8: 6 | AC8: =IF(AB8="", "",AA8*12+AB8) -> 78 | AD8: = | AE8: =IF(AC8="", "", IF(AC8<12,AC8&"""", INT(AC8/12) &"' - "&MOD(AC8,12)&"""")) -> 6' - 6"
S9: 2 | T9: 6 | U9: =IF(T9="", "",S9*12+T9) -> 30 | V9: = | W9: =IF(U9="", "", IF(U9<12,U9&"""", INT(U9/12) &"' - "&MOD(U9,12)&"""")) -> 2' - 6" | AA9: 5 | AB9: 6 | AC9: =IF(AB9="", "",AA9*12+AB9) -> 66 | AD9: = | AE9: 5' - 6"
C10: Inches | J10: Feet | K10: Inches | S10: Result | U10: =U8-U9 -> 12 | V10: = | W10: =IF(U10="", "", IF(U10<12,U10&"""", INT(U10/12) &"' - "&MOD(U10,12)&"""")) -> 1' - 0" | AA10: Area (Sq. Ft.) | AC10: =AC8*AC9 -> 5148 | AD10: = | AE10: =AC10/144 -> 35.75
C11: 25 | D11: =C11 -> 25 | E11: = | F11: =IF(C11="", "", IF(C11<12,C11&"""", INT(C11/12) &"' - "&MOD(C11,12)&"""")) -> 2' - 1" | J11: 25 | K11: 5 | L11: =IF(AND(J11="",K11=""), "",J11*12+K11) -> 305 | M11: = | N11: =IF(L11="", "", IF(L11<12,L11&"""", INT(L11/12) &"' - "&MOD(L11,12)&"""")) -> 25' - 5"
C12: 36 | D12: =C12 -> 36 | E12: = | F12: 3' - 0" | J12: 6 | K12: 56 | L12: 128 | M12: = | N12: 10' - 8"
C13: 21 | D13: =C13 -> 21 | E13: = | F13: =IF(C13="", "", IF(C13<12,C13&"""", INT(C13/12) &"' - "&MOD(C13,12)&"""")) -> 1' - 9" | J13: 36 | K13: 5 | L13: 437 | M13: = | N13: 36' - 5" | R13: Subtraction | Z13: Multiplication | AA13: Mulitplication
D14: 0 | E14: = | J14: 5 | K14: 1 | L14: 61 | M14: = | N14: 5' - 1" | R14: (By Entering Inches Only) | Z14: (Volume) | AA14: Mulitplication
D15: 0 | E15: = | J15: 6 | K15: 5 | L15: 77 | M15: = | N15: 6' - 5" | AA15: Feet | AB15: Inches
D16: 0 | E16: = | K16: 55 | L16: 55 | M16: = | N16: 4' - 7" | S16: Inches | AA16: DEMO | AB16: DEMO | AD16: =
D17: 0 | E17: = | M17: = | S17: DEMO | U17: =IF(T17="", "",S17*12+T17) ->  | V17: = | AA17: DEMO | AB17: DEMO | AD17: =
D18: 0 | E18: = | M18: = | S18: DEMO | U18: =IF(T18="", "",S18*12+T18) ->  | V18: = | AA18: DEMO | AB18: DEMO | AD18: =
C19: Total | D19: =SUM(D11:D18) -> 82 | E19: = | F19: =IF(D19="", "", IF(D19<12,D19&"""", INT(D19/12) &"' - "&MOD(D19,12)&"""")) -> 6' - 10" | J19: Total | L19: =SUM(L11:L18) -> 1063 | M19: = | N19: =IF(L19="", "", IF(L19<12,L19&"""", INT(L19/12) &"' - "&MOD(L19,12)&"""")) -> 88' - 7" | S19: Result | U19: =U17-U18 ->  | V19: = | W19: DEMO | AA19: Volume (Cu. Ft.) | AD19: = | AE19: DEMO

Sheet Loads (hidden)
C1: Please read the User Guide and Disclaimer prior to use.
F2: Return To Main Sheet
C3: COOLING AND HEAT LOAD ROUGH ESTIMATES
C5: COOLING LOAD ESTIMATE
C6: Space Area | D6: 4500 | E6: Sq.Ft./Ton
C7: Cooling Load Estimate (Sq.Ft. per Ton) | D7: 350 | E7: Sq.Ft./Ton
C8: Cooling Load = | D8: =D6/D7 -> 12.85714286 | E8: Tons
C10: HEATING LOAD ESTIMATE
C11: Space Area | D11: 4500 | E11: Sq.Ft.
C12: Heating Load Estimate (Btuh per Sq.Ft.) | D12: 40 | E12: Btuh/Sq.Ft.
C13: Heating Load = | D13: =D11*D12 -> 180000 | E13: Btuh
C14: Heating Load = | D14: =D13/1000 -> 180 | E14: MBH
B16: The above calculations are also available in CalcSheet format: "L1 - Cooling and Heating Load Rough Estimates.xlsx"
B17: Contact us for more information. Email: hvacnotebook@yahoo.com

Sheet Unit Conversion (hidden)
D1: Please read the User Guide and Disclaimer prior to use.
D2: UNIT CONVERSIONS | H2: Return To Main Sheet
C4: Units | D4: Conversion Basis | F4: Enter Value | I4: Result
B5: Temperatures | C5: Celsius <=> Fahrenheit | D5: Celsius = (5/9) x (Fahrenheit - 32) | F5: 180 | G5: Fahrenheit | H5: = | I5: =(5/9)*(F5-32) -> 82.22222222 | J5: Celsius
D6: Fahrenheit = (9/5) x Celsius + 32 | F6: 13 | G6: Celsius | H6: = | I6: =(9/5)*F6+32 -> 55.4 | J6: Fahrenheit
C7: Celsius <=> Kevin | D7: Celsius = Kevin - 273.15 | F7: 300 | G7: Kevin | H7: = | I7: =F7-273.15 -> 26.85 | J7: Celsius
D8: Kevin = Celsius + 273.15 | F8: 25 | G8: Celsius | H8: = | I8: =F8+273.15 -> 298.15 | J8: Kevin
C9: Fahrenheit <=> Kevin | D9: Fahrenheit = (9/5) x (Kevin - 273.15) + 32 | F9: 290 | G9: Kevin | H9: = | I9: =(9/5)*(F9-273.15)+32 -> 62.33 | J9: Fahrenheit
D10: Kevin = (Fahrenheit - 32) * (5/9) + 273.15 | F10: 62.33 | G10: Fahrenheit | H10: = | I10: =(F10-32)*(5/9)+273.15 -> 290 | J10: Kevin
C11: Rankine <=> Kevin | D11: Rankine = (9/5) x Kevin | F11: 20 | G11: Kevin | H11: = | I11: =(9/5)*F11 -> 36 | J11: Rankine
D12: Kevin = (5/9) x Rankine | F12: 36 | G12: Rankine | H12: = | I12: =F12*(5/9) -> 20 | J12: Kevin
B14: Distance | C14: inch <=> cm | D14: 1 inch = 2.54 cm | F14: 1 | G14: inches | H14: = | I14: =F14*2.54 -> 2.54 | J14: cm
D15: cm = inches / 2.54 | F15: 1 | G15: cm | H15: = | I15: =F15/2.54 -> 0.3937007874 | J15: inches
C16: inch <=> mm | D16: 1 inch = 25.4 mm | F16: 1 | G16: inches | H16: = | I16: =F16*25.4 -> 25.4 | J16: mm
D17: mm = inches / 25.4 | F17: 1 | G17: mm | H17: = | I17: =F17/25.4 -> 0.03937007874 | J17: inches
C18: feet <=> yard | D18: 1 yard = 3 feet | F18: 1 | G18: yard | H18: = | I18: =F18*3 -> 3 | J18: feet
D19: feet = yard / 3 | F19: 1 | G19: feet | H19: = | I19: =F19/3 -> 0.3333333333 | J19: yard
C20: feet <=> meter | D20: 1 foot = 0.3048 meter | F20: 1 | G20: feet | H20: = | I20: =F20*0.3048 -> 0.3048 | J20: meter
D21: 1 meter = 3.28 feet | F21: 1 | G21: meter | H21: = | I21: =F21/0.3048 -> 3.280839895 | J21: feet
C22: mile <=> feet | D22: 1 mile = 5,280 feet | F22: 1 | G22: mile | H22: = | I22: =F22*5280 -> 5280 | J22: feet
D23: feet = miles / 5,280 | F23: 5280 | G23: feet | H23: = | I23: =F23/5280 -> 1 | J23: mile
C24: mile <=> yard | D24: 1 mile = 1,760 yards | F24: 1 | G24: mile | H24: = | I24: =F24*1760 -> 1760 | J24: yards
D25: yards = miles / 1,760 | F25: 1760 | G25: yards | H25: = | I25: =F25/1760 -> 1 | J25: mile
B27: Area | C27: sq. ft. <=> sq. in. | D27: 1 sq. ft. = 144 sq. in. | F27: 1 | G27: sq. ft. | H27: = | I27: =F27*144 -> 144 | J27: sq. in.
D28: sq. in. = sq. ft / 144 | F28: 1 | G28: sq. in. | H28: = | I28: =F28/144 -> 0.006944444444 | J28: sq. ft.
C29: sq. ft. <=> sq. meter | D29: 1 sq. ft. = 0.0929 sq. meters | F29: 1 | G29: sq. ft. | H29: = | I29: =F29*0.0929 -> 0.0929 | J29: sq. meters
D30: 1 sq. meter = 10.76 sq. ft. | F30: 1 | G30: sq. meters | H30: = | I30: =F30/0.0929 -> 10.76426265 | J30: sq. ft.
C31: sq. ft. <=> sq. cm | D31: 1 sq. ft. = 929 sq. cm | F31: 1 | G31: sq. ft. | H31: = | I31: =F31*929 -> 929 | J31: sq. cm
D32: sq. cm = sq. ft. / 929 | F32: 1 | G32: sq. cm | H32: = | I32: =F32/929 -> 0.001076426265 | J32: sq. ft.
C33: sq. ft. <=> sq. yards | D33: 1 sq. ft. = 0.1111 sq. yards | F33: 1 | G33: sq. ft | H33: = | I33: =F33*0.1111 -> 0.1111 | J33: sq. yards
D34: 1 sq. yard = 9 sq. ft. | F34: 1 | G34: sq. yards | H34: = | I34: =F34/0.1111 -> 9.00090009 | J34: sq. ft.
B36: Veolocity | C36: fpm <=> mph | D36: 1 ft/min = 0.0114 mph | F36: 1 | G36: ft/min | H36: = | I36: =F36*0.0114 -> 0.0114 | J36: mph
D37: 1 mph = 87.7 fpm | F37: 1 | G37: mph | H37: = | I37: =F37/0.0114 -> 87.71929825 | J37: ft/min
C38: mph <=> fps | D38: 1 mph = 1.467 ft/sec | F38: 1 | G38: mph | H38: = | I38: =F38*1.467 -> 1.467 | J38: ft/sec
D39: 1 fps = 0.682 mph | F39: 1 | G39: ft/sec | H39: = | I39: =F39/1.467 -> 0.6816632584 | J39: mph
C40: mps <=> mph | D40: 1 meter/sec = 2.237 mph | F40: 1 | G40: meter/sec | H40: = | I40: =F40*2.237 -> 2.237 | J40: mph
D41: 1 mph = 0.447 meter/sec | F41: 1 | G41: mph | H41: = | I41: =F41/2.237 -> 0.4470272687 | J41: meter/sec
C42: fps <=> m/s | D42: 1 ft/s = 0.3048 m/s | F42: 1 | G42: ft/s | H42: = | I42: =F42*0.3048 -> 0.3048 | J42: m/s
D43: 1 m/s = 3.2808 ft/s | F43: 1 | G43: m/s | H43: = | I43: =F43/0.3048 -> 3.280839895 | J43: ft/s
C44: km/hr <=> m/s | D44: 1 km/hr = 0.2778 m/s | F44: 1 | G44: km/hr | H44: = | I44: =F44*0.2778 -> 0.2778 | J44: m/s
D45: 1 m/s = 3.5997 km/hr | F45: 1 | G45: m/s | H45: = | I45: =F45/0.2778 -> 3.599712023 | J45: km/hr
C46: mps <=> fpm | D46: 1 meter/sec = 196.85 ft/min | F46: 1 | G46: meter/sec | H46: = | I46: =F46*196.85 -> 196.85 | J46: ft/min
D47: fpm = meter/sec / 196.85 | F47: 1 | G47: ft/min | H47: = | I47: =F47/196.85 -> 0.00508001016 | J47: meter/sec
B49: Pressure | C49: atm <=> psia | D49: 1 atm = 14.7 psia | F49: 1 | G49: atm | H49: = | I49: =F49*14.7 -> 14.7 | J49: psia
D50: psia = atm / 14.7 | F50: 1 | G50: psia | H50: = | I50: =F50/14.7 -> 0.06802721088 | J50: atm
C51: atm <=> psf | D51: 1 atm = 2,116.2 lb/ft2 | F51: 1 | G51: atm | H51: = | I51: =F51*2116.2 -> 2116.2 | J51: lb/ft2
D52: lb/ft = atm / 2,116.2 | F52: 1 | G52: lb/ft2 | H52: = | I52: =F52/2116.2 -> 0.0004725451281 | J52: atm
C53: atm <=> in. Hg | D53: 1 atm = 29.92 in. Hg | F53: 1 | G53: atm | H53: = | I53: =F53*29.92 -> 29.92 | J53: in. Hg
D54: in. Hg = atm / 29.92 | F54: 1 | G54: in. Hg | H54: = | I54: =F54/29.92 -> 0.03342245989 | J54: atm
C55: in. water <=> in. mercury | D55: 1 in. water = 0.0739 in mercury | F55: 1 | G55: in. water | H55: = | I55: =F55*0.0739 -> 0.0739 | J55: in. mercury
D56: 1 in. mercury = 13.53 in. water | F56: 1 | G56: in. mercury | H56: = | I56: =F56/0.0739 -> 13.53179973 | J56: in. water
C57: in. Hg <=> in. water | D57: 1 in. Hg = 12.8 in water | F57: 1 | G57: in. Hg | H57: = | I57: =F57*12.8 -> 12.8 | J57: in. water
D58: 1 in. water = 0.0781 in. Hg | F58: 1 | G58: in. water | H58: = | I58: =F58/12.8 -> 0.078125 | J58: in. Hg
C59: ft. H2O <=> psi | D59: 1 ft.H2O = 0.4335 psi | F59: 1 | G59: ft. H20 | H59: = | I59: =F59*0.4335 -> 0.4335 | J59: psi
D60: 1 psi = 2.31 ft. H20 | F60: 1 | G60: psi | H60: = | I60: =F60/0.4335 -> 2.306805075 | J60: ft. H20
C61: ft. H2O <=> psf | D61: 1 ft.H2O = 62.43 lbs./sq.ft. | F61: 1 | G61: ft. H20 | H61: = | I61: =F61*62.43 -> 62.43 | J61: lbs/sq.ft
D62: psf = ft. H20 / 62.43 | F62: 1 | G62: lbs/sq.ft | H62: = | I62: =F62/62.43 -> 0.01601794009 | J62: ft. H20
C63: mm Hg <=> psi | D63: 1 mm Hg = 0.01934 lb/in2 | F63: 1 | G63: mm Hg | H63: = | I63: =F63*0.01934 -> 0.01934 | J63: lb/in2
D64: 1 lb/in2 = 51.71 mm Hg | F64: 1 | G64: lb/in2 | H64: = | I64: =F64/0.01934 -> 51.70630817 | J64: mm Hg
B66: Time | C66: day <=> hours | D66: 1 day = 24 hours | F66: 1 | G66: day | H66: = | I66: =F66*24 -> 24 | J66: hours
D67: hours = days / 24 | F67: 24 | G67: hours | H67: = | I67: =F67/24 -> 1 | J67: day
C68: day <=> minutes | D68: 1 day = 1,440 minutes | F68: 1 | G68: day | H68: = | I68: =F68*1440 -> 1440 | J68: minutes
D69: minutes = days / 1,440 | F69: 1 | G69: minutes | H69: = | I69: =F69/1440 -> 0.0006944444444 | J69: day
C70: hour <=> minutes | D70: 1 hour = 60 minutes | F70: 1 | G70: hour | H70: = | I70: =F70*60 -> 60 | J70: minutes
D71: minutes = hours / 60 | F71: 1 | G71: minutes | H71: = | I71: =F71/60 -> 0.01666666667 | J71: hour
C72: minutes <=> seconds | D72: 1 minute = 60 seconds | F72: 1 | G72: minutes | H72: = | I72: =F72*60 -> 60 | J72: seconds
D73: seconds = minutes / 60 | F73: 1 | G73: seconds | H73: = | I73: =F73/60 -> 0.01666666667 | J73: minutes
C74: year <=> month | D74: 1 year = 12 months | F74: 1 | G74: year | H74: = | I74: =F74*12 -> 12 | J74: months
D75: months = years / 12 | F75: 1 | G75: months | H75: = | I75: =F75/12 -> 0.08333333333 | J75: years
C76: year <=> weeks | D76: 1 year = 52 weeks | F76: 1 | G76: year | H76: = | I76: =F76*52 -> 52 | J76: weeks
D77: weeks = years / 52 | F77: 52 | G77: weeks | H77: = | I77: =F77/52 -> 1 | J77: years
C79: The above calculations are also available in CalcSheet format: "M5 - Unit Conversions.xlsx"
C80: Contact us for more information. Email: hvacnotebook@yahoo.com

Sheet Pipe (hidden)
B1: Please read the User Guide and Disclaimer prior to use.
F2: Return To Main Sheet
B5: Water Volume Inside Pipe
B6: Segment | C6: Pipe Diameter (Inches) | D6: Pipe Length (Feet) | E6: Water Inside Pipe (Gallons) | F6: Remarks | U6: 1/4" | V6: 0.25
B7: A-B | C7: 1/4" | D7: 50 | E7: =IF(D7="","",IF(ISERROR(0.0034*(VLOOKUP(C7,$U$6:$V$22,2,FALSE)^2)*D7*12), "", 0.0034*(VLOOKUP(C7,$U$6:$V$22,2,FALSE)^2)*D7*12)) -> 0.1275 | U7: 3/8" | V7: 0.375
B8: B-C | C8: 5" | D8: 10 | E8: =IF(D8="","",IF(ISERROR(0.0034*(VLOOKUP(C8,$U$6:$V$22,2,FALSE)^2)*D8*12), "", 0.0034*(VLOOKUP(C8,$U$6:$V$22,2,FALSE)^2)*D8*12)) -> 10.2 | U8: 1/2" | V8: 0.5
B9: C-D | C9: 1" | D9: 1 | E9: 0.0408 | U9: 3/4" | V9: 0.75
B10: D-E | C10: 6" | D10: 10 | E10: 14.688 | U10: 1" | V10: 1
D11: Total Volume = | E11: =SUM(E7:E10) -> 25.0563 | F11: Gallons | U11: 1-1/4" | V11: 1.25
D12: Allowance/Safety: | E12: 0.15 | F12: Percent | U12: 1-1/2" | V12: 1.5
D13: Total Water Inside Piping with Safety = | E13: =E11+E11*E12 -> 28.814745 | F13: Gallons | U13: 2" | V13: 2
U14: 3" | V14: 3
A15: The above calculations are available in CalcSheet format: "P2 - Water Volume Inside Piping Estimate.xlsx" | U15: 4" | V15: 4
A16: Contact Us For More Information. | U16: 5" | V16: 5
A17: Email: hvacnotebook@yahoo.com | U17: 6" | V17: 6
U18: 10" | V18: 10
U19: 12" | V19: 12
U20: 14" | V20: 14
U21: 16" | V21: 16
U22: 18" | V22: 18

Sheet Motor (hidden)
C1: Please read the User Guide and Disclaimer prior to use.
H2: Return To Main Sheet
D4: Fan Motor - HP
D10: Fan Motor HP
D11: Airflow | E11: 10000 | F11: CFM
D12: Static Pressure | E12: 2.4 | F12: inches
D13: Specific Gravity | E13: 1
D14: Fan Efficiency | E14: 0.6 | F14: Percent
D15: Brake HP = | E15: =(E11*E12*E13)/(6356*E14) -> 6.293266205 | F15: BHP
D16: Motor/Drive Effriciency | E16: 0.85
D17: Motor HP = | E17: =E15/E16 -> 7.403842594 | F17: HP
E20: The above calculations are also available in CalcSheet format: "EQ1 - Fan Motor HP Calculation.xlsx"
E21: Contact us for more information. Email: hvacnotebook@yahoo.com

Sheet Percentage (hidden)
E1: Please read the User Guide and Disclaimer prior to use.
G2: PERCENTAGE | K2: Return To Main Sheet
B4: Percentage Change | E4: Part of Total Percentage (1) | H4: Add A Percentage To A Number | K4: Percentage Difference
B8: Original Number | C8: 150 | E8: Part Number | F8: 3 | H8: Percent | I8: 0.1 | K8: Number A | L8: 100
B9: New Number | C9: 100 | E9: Total Number | F9: 30 | H9: Original Number | I9: 150 | K9: Number B | L9: 50
B10: =IF(C8<C9,"Percentage Increase =", "Percent Decrease =") -> Percent Decrease = | C10: =ABS((C9-C8)/C8) -> 0.3333333333 | E10: Percent = | F10: =F8/F9 -> 0.1 | H10: New Number = | I10: =I9*I8+I9 -> 165 | K10: Percent Difference = | L10: =ABS((L8-L9)/((L8+L9)/2)) -> 0.6666666667
B11: =IF(C8<C9,"Change from "& C8 & " to " & C9 &" is a " & TEXT(C10,"0%") & " Increase", "Change from "& C8 & " to " & C9 &" is a " & TEXT(C10,"0%") & " Decrease") -> Change from 150 to 100 is a 33% Decrease | E11: =F8 & " out of " & F9 &" is " & TEXT(F10,"0%") -> 3 out of 30 is 10% | H11: ="Add "& TEXT(I8,"0%") & " To " & I9 & " = "&I10 -> Add 10% To 150 = 165 | K11: ="Difference between "& L8 & " and " & L9 & " = "& TEXT(L10,"0%") -> Difference between 100 and 50 = 67%
H12: =I9 & " Plus " & TEXT(I8, "0%") & " = "&I10 -> 150 Plus 10% = 165
B14: Percentage Greater or Less Than | E14: Part of Total Percentage (2) | H14: Subtract A Percentage From A Number | K14: Percentage of a Number
B18: Number A | C18: 10 | E18: Part Number | F18: 25 | H18: Percent | I18: 0.1 | K18: Percent | L18: 0.3
B19: Number B | C19: 25 | E19: Percentage | F19: 0.5 | H19: Original Number | I19: 150 | K19: Original Number | L19: 100
B20: Percent = | C20: =ABS((C18-C19)/C19) -> 0.6 | E20: Total Number = | F20: =F18/F19 -> 50 | H20: New Number = | I20: =I19-(I19*I18) -> 135 | K20: New Number = | L20: =L18*L19 -> 30
B21: =IF(C18<C19,C18 & " is " & TEXT(C20,"0%") &" Less than " &C19, C18 & " is " & TEXT(C20,"0%") &" Greater than " &C19) -> 10 is 60% Less than 25 | E21: =F18 & " is " & TEXT(F19,"0%") &" of " &F20 -> 25 is 50% of 50 | H21: ="Subtract "& TEXT(I18,"0%") & " From " & I19 & " = "&I20 -> Subtract 10% From 150 = 135 | K21: =TEXT(L18,"0%") & " of " & L19 &" is " &L20 -> 30% of 100 is 30
H22: =I19 & " Minus " & TEXT(I18,"0%") & " = "&I20 -> 150 Minus 10% = 135
B24: Percentage Off (1)
B25: Original Number | C25: 100
B26: Percentage Off | C26: 0.25
B27: New Number = | C27: =C25*((100-C26*100)/100) -> 75
B28: =TEXT(C26,"0%") &" off " &C25 & " is " & C27 -> 25% off 100 is 75
B30: Percentage Off (2)
B31: Original Number | C31: 100
B32: New Number | C32: 25
B33: Percentage Off = | C33: =(100-((C32/C31)*100))/100 -> 0.75
B34: ="From " &C31 &" To " &C32 & " is " & TEXT(C33,"0%") &" off " -> From 100 To 25 is 75% off

Sheet Individual Percentage (hidden)
E1: INDIVIDUAL PERCENTAGE
I2: Return To Main Sheet
B4: Individual Percentage of Total
B7: Name | C7: Value | D7: Individual Percentage
B8: Item 1 | C8: 25 | D8: =IF(C8="","",1-((C18-C8)/C18)) -> 0.1984126984
B9: Item 2 | C9: 25 | D9: =IF(C9="","",1-((C18-C9)/C18)) -> 0.1984126984
B10: Item 3 | C10: 25 | D10: =IF(C10="","",1-((C18-C10)/C18)) -> 0.1984126984
B11: Item 4 | C11: 25 | D11: =IF(C11="","",1-((C18-C11)/C18)) -> 0.1984126984
B12: Item 5 | C12: 26 | D12: =IF(C12="","",1-((C18-C12)/C18)) -> 0.2063492063
B13: DEMO | C13: DEMO | D13: DEMO
B14: DEMO | C14: DEMO | D14: DEMO
B15: DEMO | C15: DEMO | D15: DEMO
B16: DEMO | C16: DEMO | D16: DEMO
B17: DEMO | C17: DEMO | D17: DEMO
B18: Total = | C18: =SUM(C8:C12) -> 126 | D18: =SUM(D8:D12) -> 1

Sheet Percent EA (hidden)
E1: Please read the User Guide and Disclaimer prior to use.
E2: PERCENTAGE (Engineers & Achitects) | I2: Return To Main Sheet
B4: Percent Free Area | E4: Space Negative Pressure | I4: Space Positive Pressure
B5: Total Area (Sq. Ft) | C5: 100 | E5: System Outside Air | F5: 8000 | G5: CFM | I5: Total Exhaust Air | J5: 8000 | K5: CFM
B6: Free Area (Sq. Ft) | C6: 25 | E6: Percent Negative Pressure | F6: 0.1 | G6: Percent | I6: Percent Positive Pressure | J6: 0.1 | K6: Percent
B7: Percent Free Area = | C7: =1-((C5-C6)/C5) -> 0.25 | E7: Required Exhaust Air = | F7: =F5+(F5*F6) -> 8800 | G7: CFM | I7: Required Outside Air = | J7: =J5+(J5*J6) -> 8800 | K7: CFM
B9: Percent Load Capacity | E9: Percent Negative Pressure | I9: Percent Positive Pressure
B10: Full Load | C10: 100 | E10: System Outside Air | F10: 8000 | G10: CFM | I10: System Outside Air | J10: 1000 | K10: CFM
B11: Part Load | C11: 75 | E11: System Exhaust Air | F11: 8800 | G11: CFM | I11: System Exhaust Air | J11: 800 | K11: CFM
B12: Percent Capacity = | C12: =1-((C10-C11)/C10) -> 0.75 | E12: Negative Pressure = | F12: =(F10-F11)/F10 -> -0.1 | G12: Percent | I12: Positive Pressure = | J12: =(J10-J11)/J10 -> 0.2 | K12: Percent
B14: Window-To-Wall Ratio
B15: Window Area (Sq. Ft) | C15: 50
B16: Total Area (Sq. Ft) | C16: 200
B17: Percent Capacity = | C17: =C15/C16 -> 0.25
B19: Percent Load Capacity
B23: Full Load | C23: 100
B24: Operating Load | C24: 75
B25: Operating Load Capacity = | C25: =1-((C23-C24)/C23) -> 0.75

Sheet GPM (hidden)
B1: Please read the User Guide and Disclaimer prior to use.
G2: Return To Main Sheet
C4: GPM CALCULATIONS
C6: Chilled Water GPM Calc. | G6: Hot Water GPM Calc.
C8: Cooling Load (Tons) | D8: 120 | E8: Tons | G8: Heating Load | H8: 50000 | I8: Btu/hr
C9: Water ∆T | D9: 10 | E9: F | G9: Water ∆T | H9: 20 | I9: F
C10: GPM (Evaporator) = | D10: =(D8*24)/D9 -> 288 | E10: GPM | G10: GPM = | H10: =H8/(500*H9) -> 5 | I10: GPM
C12: Cooling Capacity Calc. | G12: Heating Capacity Calc.
C14: Water Flow (GPM) | D14: 288 | E14: GPM | G14: Water Flow (GPM) | H14: 288 | I14: GPM
C15: Water ∆T | D15: 10 | E15: F | G15: Water ∆T | H15: 20 | I15: F
C16: Cooling Capacity (Btu/hr) = | D16: =500*D14*D15 -> 1440000 | E16: Btu/hr | G16: Heating Capacity (Btu/hr) = | H16: =500*H14*H15 -> 2880000 | I16: Btu/hr
C17: Cooling Capacity (Tons) = | D17: =D16/12000 -> 120 | E17: Tons | G17: Heating Capacity (MBH) = | H17: =H16/1000 -> 2880 | I17: MBH

Sheet Demo (hidden)
B1: Please read the User Guide and Disclaimer prior to use.
E3: Return To Main Sheet
E5: This Sheet Is Not Available In The DEMO Version.
E6: Get The Full Version To Use These Calculations.
C8: www.HVACnotebook.com

Sheet Fan Law (hidden)
B1: Please read the User Guide and Disclaimer prior to use.
G2: FAN LAWS | J2: Return To Main Sheet
B4: New BHP | D4: New BHP From Change in CFM | G4: New BHP From Change in RPM | J4: New BHP From Change in SP
D8: CFM1 | E8: 10000 | G8: RPM1 | H8: 850 | J8: SP1 | K8: 2.4
D9: BHP1 | E9: 10 | G9: BHP1 | H9: 10 | J9: BHP1 | K9: 10
D10: CFM2 | E10: 7000 | G10: RPM2 | H10: 800 | J10: SP2 | K10: 2
D11: BHP2 = | E11: =((E10/E8)^3)*E9 -> 3.43 | G11: BHP2 = | H11: =((H10/H8)^3)*H9 -> 8.33706493 | J11: BHP2 = | K11: =((K10/K8)^1.5)*K9 -> 7.607257743
B13: New CFM | D13: New CFM From Change in BHP | G13: New CFM From Change in RPM | J13: New CFM From Change in SP
D17: BHP1 | E17: 10 | G17: RPM1 | H17: 850 | J17: SP1 | K17: 2.4
D18: CFM1 | E18: 10000 | G18: CFM1 | H18: 10000 | J18: CFM1 | K18: 10000
D19: BHP2 | E19: 3.43 | G19: RPM2 | H19: 680 | J19: SP2 | K19: 1.54
D20: CFM2 = | E20: =((E19/E17)^(1/3))*E18 -> 7000 | G20: CFM2 = | H20: =(H19/H17)*H18 -> 8000 | J20: CFM2 = | K20: =((K19/K17)^(1/2))*K18 -> 8010.409894
B22: New SP | D22: New SP From Change in CFM | G22: New SP From Change in RPM | J22: New SP From Change in BHP
D26: CFM1 | E26: DEMO | G26: RPM1 | H26: DEMO | J26: BHP1 | K26: DEMO
D27: SP1 | E27: DEMO | G27: SP1 | H27: DEMO | J27: SP1 | K27: DEMO
D28: CFM2 | E28: DEMO | G28: RPM2 | H28: DEMO | J28: BHP2 | K28: DEMO
D29: SP2 = | E29: N/A | G29: SP2 = | H29: N/A | J29: SP2 = | K29: N/A
B31: New RPM | D31: New RPM From Change in CFM | G31: New RPM From Change in SP | J31: New RPM From Change in BHP
D35: CFM1 | E35: DEMO | G35: SP1 | H35: DEMO | J35: BHP1 | K35: DEMO
D36: RPM1 | E36: DEMO | G36: RPM1 | H36: DEMO | J36: RPM1 | K36: DEMO
D37: CFM2 | E37: DEMO | G37: SP2 | H37: DEMO | J37: BHP2 | K37: DEMO
D38: RPM2 = | E38: N/A | G38: RPM2 = | H38: N/A | J38: RPM2 = | K38: N/A
A39: Get the Full Version of "M1-QuickCalcs-HVAC.xlsm" to use all features.
A40: The above calculations are also available in CalcSheet format: "EQ5 - Fan Laws.xlsx"
A41: Contact us for more information. Email: hvacnotebook@yahoo.com

Sheet Airflow (hidden)
B1: Please read the User Guide and Disclaimer prior to use.
G2: Return To Main Sheet
B4: AIRFLOW CALCULATION
C6: Room Area | D6: 170 | E6: SF
C7: Height | D7: 9 | E7: ft
D8: 6 | E8: Inches
C9: Room Volume = | D9: =D6*(D7+D8/12) -> 1615 | E9: CF
C11: Airflow Calc. Based on CFM/SF
C13: Design Flow/Area | D13: 1 | E13: CFM/SF
C14: Design Airflow = | D14: =D13*D6 -> 170 | E14: CFM
C16: Airflow Calc. Based on ACH
C18: Design ACH | D18: 6 | E18: ACH
C19: Design Airflow = | D19: =(D18/60)*D9 -> 161.5 | E19: CFM
D22: The above calculations are also available in CalcSheet format: "A1 - Smoke Purge Airflow Calculation.xlsx"
D23: Contact us for more information. Email: hvacnotebook@yahoo.com

Sheet Pressurization (hidden)
F1: Please read the User Guide and Disclaimer prior to use.
F2: PRESSURIZATION | H2: Return To Main Sheet
C4: Negative Pressurization | G4: Positive Pressurization
C5: Supply Air | D5: 8000 | E5: CFM | G5: Total Exhaust Air | H5: 8000 | I5: CFM
C6: Percent Negative Pressure | D6: 0.1 | E6: Percent | G6: Percent Positive Pressure | H6: 0.1 | I6: Percent
C7: Required Exhaust Air = | D7: =D5+(D5*D6) -> 8800 | E7: CFM | G7: Required Outside Air = | H7: =H5+(H5*H6) -> 8800 | I7: CFM
C10: Percent Negative Pressurization | G10: Percent Positive Pressurization
C11: Supply Air | D11: 8000 | E11: CFM | G11: Outside Air | H11: 1000 | I11: CFM
C12: Exhaust Air | D12: 8800 | E12: CFM | G12: Exhaust Air | H12: 800 | I12: CFM
C13: Percent Negative Pressure = | D13: =(D11-D12)/D11 -> -0.1 | E13: Percent | G13: Percent Positive Pressure = | H13: =(H11-H12)/H11 -> 0.2 | I13: Percent

Sheet Louver (hidden)
B1: Please read the User Guide and Disclaimer prior to use.
E2: LOUVER SIZING | G2: Return To Main Sheet
B4: Louver Size Based on Velocity & Free Area | F4: Air Velocity Based on Airflow & Free Area
B5: Airflow | C5: 40000 | D5: CFM | F5: Airflow | G5: 40000 | H5: CFM
B6: Face Velocity | C6: 500 | D6: FPM | F6: Louver Face Area | G6: 100 | H6: Sq. Ft.
B7: Required Free Area = | C7: =C5/C6 -> 80 | D7: Sq. Ft. | F7: Louver Free Area (%) | G7: 0.5 | H7: Design
C8: =C7*144 -> 11520 | D8: Sq. Inches | F8: Resulted Free Area = | G8: =G6*G7 -> 50 | H8: Sq. Ft.
B9: Louver Free Area (%) | C9: 0.5 | D9: Design | F9: Resulted Air Velocity = | G9: =G5/G8 -> 800 | H9: FPM
B10: Louver Face (Total) Area = | C10: =C7/C9 -> 160 | D10: Sq. Ft.
C11: =C10*144 -> 23040 | D11: Sq. Inches
B12: Louver Width | C12: 46 | D12: Inches
B13: Louver Height = | C13: =INT(C11/C12) -> 500 | D13: Inches
B14: Required Louver Face Area = | C14: =IF(C12="", "", IF(C12<12,C12&"""", INT(C12/12) &"' - "&MOD(C12,12)&""""))&" W x "&IF(C13="", "", IF(C13<12,C13&"""", INT(C13/12) &"' - "&MOD(C13,12)&""""))&" H" -> 3' - 10" W x 41' - 8" H
E17: The above calculations are also available in CalcSheet format: "A2 - Louver Sizing Using FPM.xlsx"
E18: Contact us for more information. Email: hvacnotebook@yahoo.com

Sheet Message
C3: MESSAGE
C5: You MUST enable macros to use the calculation spreadsheets. Please click the "Enable Content" button located below the Ribbon (Excel 2010 & 2013) to enable macros. Or close this file and open it again under the enable macros mode.
C7: This is a FREE Version of the "QuickCalcs-HVAC.xlsm" and will expire on November 1, 2018. You will not be able to print or save any data in this file. For a Full Version (printable & saveable) without the 10 second screen delay, see "QuickCalcs-HVAC.xlsm" at:
C8: www.HVACnotebook.com
C10: If this file has expired (after 11/1/2018), please visit our website for another free download.

Sheet Disclaimer (hidden)
E2: Return To Main Sheet
C4: USER GUIDE
C5: 1) | D5: Enter (Replace) value in yellow cells. Results will automatically be calculated in grey cells with final answer in blue cells.
C6: 2) | D6: User must Enable Marcos for the spreadsheets to work properly.
C7: 3) | D7: These spreadsheets can not be saved or printed, and will expire on November 1, 2018.
C8: 4) | D8: Please read the below Disclaimer prior to use. Click the above "Return To Main Sheet" button to start using our spreadsheets.
C9: 5) | D9: Visit our website at www.HVACnotebook.com for more products.
C10: DISCLAIMER
C11: 1) | D11: The intend of these spreadsheets is to reduce tedious & repetitive calculations. It is assumed that the user is familiar with the formulas applied and can perform these calculations on his/her own without these spreadsheets. User is responsible to verify the results and correctly use the results from these spreadsheets. We are NOT responsible for any errors in these spreadsheets.
C12: 2) | D12: We make no guarantees about the quality of our Spreadsheets and is not responsible for any claims, losses, damages, costs, or other obligations arising from use of our products or materials from our website. We also denies any responsibility for the quality and accuracy of the information presented on our spreadsheets and/or website. Our website and all materials contained on it are distributed and transmitted “as is” without warranties of any kind, either express or implied.
C13: 3) | D13: We are not responsible for any special, indirect, incidental or consequential damages (regardless or whether they were foreseeable) that may arise from the use of, or the inability to use, our products and/or the materials contained on our website.
C14: 4) | D14: Any material downloaded from our website is done at your own discretion and risk. You will be solely responsible for any damage to your computer system or other device or loss of data that results from the download or use of any such material.

Sheet Electrical (hidden)
B1: Please read the User Guide and Disclaimer prior to use.
S2: Return To Main Sheet
B4: ELECTRICAL: OHM'S LAW
C5: V = Voltage (Volts) | E5: P = Power (Watts) | I5: I = Current (Amps) | K5: R = Resistance (Ohms)
C7: FIND VOLTAGE | H7: FIND CURRENT | M7: FIND POWER | R7: FIND RESISTANCE
D11: Power (P) | E11: 34 | F11: Watts | I11: Voltage (V) | J11: 34 | K11: Volts | N11: Current (I) | O11: 5 | P11: Amps | S11: Voltage (V) | T11: 34 | U11: Volts
D12: Current (I) | E12: 5 | F12: Amps | I12: Resistance (R) | J12: 5 | K12: Ohms | N12: Resistance (R) | O12: 5 | P12: Ohms | S12: Current (I) | T12: 5 | U12: Amps
D13: Voltage (V) = | E13: =E11/E12 -> 6.8 | F13: Volts | I13: Current (I) = | J13: =J11/J12 -> 6.8 | K13: Amps | N13: Power (P) = | O13: =O11*O11*O12 -> 125 | P13: Watts | S13: Resistance (R) = | T13: =T11/T12 -> 6.8 | U13: Ohms
D17: Current (I) | E17: 5 | F17: Amps | I17: Power (P) | J17: 5 | K17: Watts | N17: Voltage (V) | O17: 5 | P17: Volts | S17: Voltage (V) | T17: 5 | U17: Volts
D18: Resistance (R) | E18: 6 | F18: Ohms | I18: Voltage (V) | J18: 6 | K18: Volts | N18: Current (I) | O18: 6 | P18: Amps | S18: Power (P) | T18: 6 | U18: Watts
D19: Voltage (V) = | E19: =E17*E18 -> 30 | F19: Volts | I19: Current (I) = | J19: =J17/J18 -> 0.8333333333 | K19: Amps | N19: Power (P) = | O19: =O17*O18 -> 30 | P19: Watts | S19: Resistance (R) = | T19: =(T17*T17)/T18 -> 4.166666667 | U19: Ohms
D23: Power (P) | E23: DEMO | F23: Watts | I23: Power (P) | J23: DEMO | K23: Watts | N23: Voltage (V) | O23: DEMO | P23: Volts | S23: Power (P) | T23: DEMO | U23: Watts
D24: Resistance (R) | E24: DEMO | F24: Ohms | I24: Resistance (R) | J24: DEMO | K24: Ohms | N24: Resistance (R) | O24: DEMO | P24: Ohms | S24: Current (I) | T24: DEMO | U24: Amps
D25: Voltage (V) = | E25: N/A | F25: Volts | I25: Current (I) = | J25: N/A | K25: Amps | N25: Power (P) = | O25: N/A | P25: Watts | S25: Resistance (R) = | T25: N/A | U25: Ohms
M28: Get the Full Version of "M1-QuickCalcs-HVAC.xlsm" to use all features.
M29: Contact us for more information. Email: hvacnotebook@yahoo.com

Sheet Chiller (hidden)
B1: Please read the User Guide and Disclaimer prior to use.
H2: Return To Main Sheet
E3: CHILLER - (ELECTRIC)
F4: GIVEN CHILLER COP
B5: CHILLED WATER FLOW | F5: COP = | G5: 4.2 | H5: From Manufacturer
B6: Cooling Load | C6: 120 | D6: Tons | F6: EER = | G6: =G5*3.412 -> 14.3304 | H6: EER = COP x 3.412
B7: CHW Supply Temperature | C7: 45 | D7: F | F7: kW/Ton = | G7: =3.516/G5 -> 0.8371428571 | H7: kW/Ton = 3.516 / COP
B8: CHW Return Temperature | C8: 55 | D8: F
B9: Required CHW Flow (GPM) = | C9: =C6*12000/(500*(C8-C7)) -> 288 | D9: GPM | F9: GIVEN CHILLER EER
F10: EER = | G10: 14.33 | H10: From Manufacturer
F11: COP = | G11: =G10/3.412 -> 4.199882767 | H11: COP = EER / 3.412
B12: CONDENSER WATER FLOW | F12: kW/Ton = | G12: =3.516/G11 -> 0.8371662247 | H12: kW/Ton = 3.516 / COP
B13: Cooling Load | C13: DEMO | D13: Tons
B14: CW Supply Temperature | C14: DEMO | D14: F | F14: GIVEN CHILLER KW/TON
B15: CW Return Temperature | C15: DEMO | D15: F | F15: kW/Ton = | G15: 0.837 | H15: From Manufacturer
B16: Required CW Flow (GPM) = | C16: DEMO | D16: GPM | F16: EER = | G16: =12/G15 -> 14.33691756 | H16: EER = 12 / kW/Ton
F17: COP = | G17: =G16/3.412 -> 4.201910188 | H17: COP = EER / 3.412
E18: Get the Full Version of "M1-QuickCalcs-HVAC.xlsm" to use all features.
E19: Contact us for more information. Email: hvacnotebook@yahoo.com

Sheet 100 OA (hidden)
C1: Please read the User Guide and Disclaimer prior to use.
E2: Return To Main Sheet
C3: 100% OUTSIDE AIR UNIT
C4: HEATING COIL LOAD ESTIMATE
C5: Outside Air Temperature Dry Bulb | D5: 11 | E5: F
C6: Heating Coil Leaving Air Temperature Dry Bulb | D6: 95 | E6: F
C7: Unit Airflow | D7: 5000 | E7: CFM
C8: Total Btu/hr = | D8: =1.08*D7*(D6-D5) -> 453600 | E8: Btu/hr
C9: Total Heating Load = | D9: =D8/1000 -> 453.6 | E9: MBH
C11: COOLING COIL LOAD ESTIMATE
C12: Outside Air Temperature Dry Bulb | D12: DEMO | E12: F
C13: Outside Air Temperature Wet Bulb | D13: DEMO | E13: F
C14: Outside Air Temperature Enthalpy | D14: DEMO
C15: Cooling Coil Leaving Air Temperature Dry Bulb | D15: DEMO | E15: F
C16: Cooling Coil Leaving Air Temperature Wet Bulb | D16: DEMO | E16: F
C17: Cooling Coil Leaving Air Temperature Enthalpy | D17: DEMO
C18: Unit Airflow | D18: DEMO | E18: CFM
C19: Total Btu/hr = | D19: DEMO | E19: Btu/hr
C20: Total Cooling Load = | D20: N/A | E20: Tons
A21: Get the Full Version of "M1-QuickCalcs-HVAC.xlsm" to use all features.
A22: The above calculations are also available in CalcSheet format: "L8 - 100% Outside Air Unit Coils Sizing.xlsx"
A23: Contact us for more information. Email: hvacnotebook@yahoo.com

Sheet Pipe Cost (hidden)
C1: Please read the User Guide and Disclaimer prior to use.
D2: Project Title: | E2: Chilled Water System Replacement at 123 Broadway | J2: Date: | K2: 2015-09-25 | N2: Return To Main Sheet
D3: Note: | E3: Schedule 40 Piping Cost Estimate | J3: Prepared: | K3: T.K.
C6: Piping Cost Estimate
C7: Item# | D7: Tag | E7: Item | F7: Quantity | G7: Unit | H7: Pipe Unit Price | I7: Item Unit Price | J7: Item Total | K7: Assumption / Remarks | N7: Unit Price Table (Per LF)
C8: 1 | D8: A-B | E8: 4" dia. Sch 40 Welded | F8: 10 | G8: LF | H8: =IF(E8="","",IF(ISERROR(VLOOKUP(E8,$N$10:$R$28,5,FALSE)), "", VLOOKUP(E8,$N$10:$R$28,5,FALSE))) -> 36.22 | J8: =IF(E8="","",IF(H8="",F8*I8,F8*H8+F8*I8)) -> 362.2 | K8: Main from header | N8: Welded, Sch 40 Black Steel with yoke & roll hanger, 10' O.C.
C9: 2 | D9: A-B | E9: 4" Valve | F9: 1 | G9: EA | I9: 200 | J9: 200 | N9: Item | O9: Materials | P9: Labor | Q9: Equipment | R9: Total
C10: 3 | D10: B-C | E10: 4" dia. Sch 40 Welded | F10: 20 | G10: LF | H10: 36.22 | J10: 724.4 | K10: Segment B-C | N10: 1" dia. Sch 40 Welded | O10: 3.7 | P10: 7.25 | Q10: 0.6 | R10: =O10+P10+Q10 -> 11.55
C11: 4 | D11: C-D | E11: 3" dia. Sch 40 Welded | F11: 2 | G11: LF | H11: 29.46 | J11: 58.92 | N11: 1-1/4" dia. Sch 40 Welded | O11: 4.93 | P11: 8 | Q11: 0.67 | R11: =O11+P11+Q11 -> 13.6
C12: 5 | D12: D-E | E12: 3" Valve | F12: 1 | G12: EA | I12: 150 | J12: 150 | K12: Isolation Valves | N12: 1-1/2" dia. Sch 40 Welded | O12: 5.65 | P12: 8.85 | Q12: 0.74 | R12: 15.24
C13: 6 | D13: E-F | E13: 3" dia. Sch 40 Welded | F13: 6 | G13: LF | H13: 29.46 | J13: 176.76 | N13: 2" dia. Sch 40 Welded | O13: 7.4 | P13: 11 | Q13: 0.92 | R13: 19.32
C14: 7 | D14: F-G | E14: 2-1/2" dia. Sch 40 Welded | F14: 20 | G14: LF | H14: 25.29 | J14: 505.8 | N14: 2-1/2" dia. Sch 40 Welded | O14: 9.8 | P14: 14.3 | Q14: 1.19 | R14: 25.29
C15: 8 | D15: G-H | E15: 2" dia. Sch 40 Welded | F15: 10 | G15: LF | H15: 19.32 | J15: 193.2 | N15: 3" dia. Sch 40 Welded | O15: 12.5 | P15: 15.65 | Q15: 1.31 | R15: 29.46
C16: 9 | N16: 3-1/2" dia. Sch 40 Welded | O16: 13.9 | P16: 17.25 | Q16: 1.44 | R16: 32.59
C17: 10 | J17: =IF(E17="","",F17*H17+F17*I17) ->  | N17: 4" dia. Sch 40 Welded | O17: 16.5 | P17: 18.2 | Q17: 1.52 | R17: 36.22
I18: Subtotal = | J18: =SUM(J8:J17) -> 2371.28 | N18: 5" dia. Sch 40 Welded | O18: 24 | P18: 21 | Q18: 1.76 | R18: 46.76
H19: Allowance: | I19: 0.25 | J19: =J18*I19 -> 592.82 | N19: 6" dia. Sch 40 Welded | O19: 30 | P19: 29 | Q19: 1.56 | R19: 60.56
I20: GRAND TOTAL = | J20: =J18+J19 -> 2964.1 | N20: 8" dia. Sch 40 Welded | O20: 47 | P20: 36 | Q20: 1.94 | R20: 84.94
N21: 10" dia. Sch 40 Welded | O21: 88 | P21: 43.5 | Q21: 2.34 | R21: =O21+P21+Q21 -> 133.84
C22: The above calculations are also available in CalcSheet format: "P1 - Piping Cost Estimate.xlsx" | N22: 12" dia. Sch 40 Welded | O22: 122 | P22: 55 | Q22: 2.96 | R22: 179.96
C23: We can custom create a Piping Cost Estimate sheet for you. (Copper, Stainless Steel, Etc.) | N23: 14" dia. Sch 40 Welded | O23: 85 | P23: 69.5 | Q23: 3.74 | R23: 158.24
C24: Contact us for more information. Email: hvacnotebook@yahoo.com | N24: 16" dia. Sch 40 Welded | O24: 114 | P24: 80.5 | Q24: 4.32 | R24: 198.82
C25: User Guide | N25: 18" dia. Sch 40 Welded | O25: 120 | P25: 95 | Q25: 5.1 | R25: 220.1
C26: 1) | D26: To enter pipe in Item column, pick pipe diameter from pull-down list than enter length in Quantity column. Pipe Unit Price (Data from Unit Price Table) and Item Total will automatically appear. | N26: 20" dia. Sch 40 Welded | O26: 146 | P26: 116 | Q26: 6.25 | R26: 268.25
N27: 24" Dia. Sch 40 Pipe | O27: 186 | P27: 131 | Q27: 7 | R27: 324
C28: 2) | D28: To enter a non-pipe item, type a name in the Item column and than enter its unit price in Item Unit Price column. Item Total will automatically appear. | N28: Add Others… | R28: 0
C30: 3) | D30: If both pipe size is selected and Item Unit Price is entered, Item Total will be highlighted red to indicate an error. Either pipe or item can be on one line. To fix, delete value in Item Unit Price or type an item in Item column.
